[Event "*** Titled Tuesday Blitz"]
[Site "Chess.com"]
[Date "2019.05.07"]
[Round "4"]
[White "Tash_Boy"]
[Black "hansen"]
[Result "0-1"]
[WhiteElo "2624"]
[BlackElo "2774"]
[TimeControl "180+2"]
[EndTime "13:57:20 PDT"]
[Termination "hansen won by resignation"]

1. e4 {[%clk 0:03:01.9]} 1... c5 {[%clk 0:02:55.5]} 2. Nf3 {[%clk 0:03:02.1]}
2... e6 {[%clk 0:02:34.7]} 3. c4 {[%clk 0:03:01.8]} 3... Nc6 {[%clk 0:02:31.8]}
4. Nc3 {[%clk 0:03:02.6]} 4... a6 {[%clk 0:02:32.4]} 5. Be2 {[%clk 0:03:03.1]}
5... Qc7 {[%clk 0:02:30.6]} 6. O-O {[%clk 0:02:58.3]} 6... Nf6 {[%clk
0:02:30.5]} 7. d4 {[%clk 0:02:57.4]} 7... cxd4 {[%clk 0:02:27.7]} 8. Nxd4 {[%clk
0:02:59.3]} 8... d6 {[%clk 0:02:16.3]} 9. Be3 {[%clk 0:02:59.2]} 9... Be7 {[%clk
0:02:12.6]} 10. Qd2 {[%clk 0:02:59.3]} 10... O-O {[%clk 0:02:01.8]} 11. f3
{[%clk 0:02:59.6]} 11... Nxd4 {[%clk 0:01:58.4]} 12. Bxd4 {[%clk 0:03:00.2]}
12... Bd7 {[%clk 0:01:54.3]} 13. Rac1 {[%clk 0:02:56.3]} 13... Rfc8 {[%clk
0:01:54.8]} 14. Rfd1 {[%clk 0:02:55.3]} 14... Rab8 {[%clk 0:01:52]} 15. Qe1
{[%clk 0:02:54.6]} 15... Nh5 {[%clk 0:01:48.8]} 16. Qf2 {[%clk 0:02:54.2]} 16...
b6 {[%clk 0:01:46.2]} 17. g3 {[%clk 0:02:53]} 17... Nf6 {[%clk 0:01:44.5]} 18.
b3 {[%clk 0:02:50.2]} 18... h6 {[%clk 0:01:40.9]} 19. Bf1 {[%clk 0:02:50.4]}
19... Be8 {[%clk 0:01:40.2]} 20. h3 {[%clk 0:02:48.7]} 20... Nd7 {[%clk
0:01:41]} 21. f4 {[%clk 0:02:48.6]} 21... Nc5 {[%clk 0:01:41.1]} 22. Bg2 {[%clk
0:02:48.7]} 22... Bc6 {[%clk 0:01:39.5]} 23. Qe2 {[%clk 0:02:45.7]} 23... a5
{[%clk 0:01:36.8]} 24. Nb5 {[%clk 0:02:39.3]} 24... Qb7 {[%clk 0:01:37.2]} 25.
Re1 {[%clk 0:02:36.4]} 25... Rd8 {[%clk 0:01:33.8]} 26. Rcd1 {[%clk 0:02:34.7]}
26... Rbc8 {[%clk 0:01:30.4]} 27. Ba1 {[%clk 0:02:33.8]} 27... Bf8 {[%clk
0:01:31.4]} 28. Nd4 {[%clk 0:02:32.5]} 28... Be8 {[%clk 0:01:30.5]} 29. e5
{[%clk 0:02:27.7]} 29... Qc7 {[%clk 0:01:29.9]} 30. exd6 {[%clk 0:02:25.8]}
30... Bxd6 {[%clk 0:01:31.8]} 31. Rd2 {[%clk 0:02:19.6]} 31... Be7 {[%clk
0:01:29.1]} 32. Red1 {[%clk 0:02:16.1]} 32... Bf6 {[%clk 0:01:29.7]} 33. Qe3
{[%clk 0:02:12.1]} 33... Rd6 {[%clk 0:01:26.2]} 34. Bc3 {[%clk 0:02:00.2]} 34...
Rcd8 {[%clk 0:01:26.7]} 35. Ne2 {[%clk 0:02:00.5]} 35... Bc6 {[%clk 0:01:05.3]}
36. Bxf6 {[%clk 0:01:54]} 36... Rxd2 {[%clk 0:01:05.8]} 37. Rxd2 {[%clk
0:01:54]} 37... Rxd2 {[%clk 0:01:07.3]} 38. Qxd2 {[%clk 0:01:53.6]} 38... gxf6
{[%clk 0:01:05.9]} 39. Nc3 {[%clk 0:01:36.2]} 39... Bxg2 {[%clk 0:01:04.1]} 40.
Kxg2 {[%clk 0:01:38.1]} 40... Kg7 {[%clk 0:01:04.9]} 41. Qe2 {[%clk 0:01:28.7]}
41... Qc6+ {[%clk 0:01:04.3]} 42. Kh2 {[%clk 0:01:28.5]} 42... Qd6 {[%clk
0:01:05.2]} 43. Kg2 {[%clk 0:01:25.7]} 43... Qd4 {[%clk 0:01:01.2]} 44. Nb5
{[%clk 0:01:25.7]} 44... Qa1 {[%clk 0:00:58.2]} 45. Nd6 {[%clk 0:01:20]} 45...
Qd4 {[%clk 0:00:56.7]} 46. Nb5 {[%clk 0:01:20.3]} 46... Qd7 {[%clk 0:00:55.7]}
47. Nc3 {[%clk 0:01:20.2]} 47... f5 {[%clk 0:00:51]} 48. Qe3 {[%clk 0:01:11]}
48... Kg6 {[%clk 0:00:49.7]} 49. g4 {[%clk 0:01:09.3]} 49... Qc6+ {[%clk
0:00:43.1]} 50. Qf3 {[%clk 0:01:07.6]} 50... Ne4 {[%clk 0:00:34.6]} 51. Kh2
{[%clk 0:00:47.6]} 51... Kh7 {[%clk 0:00:27.3]} 52. gxf5 {[%clk 0:00:45]} 52...
exf5 {[%clk 0:00:28.1]} 53. Qg2 {[%clk 0:00:38.1]} 53... a4 {[%clk 0:00:20.5]}
54. Nd5 {[%clk 0:00:34.1]} 54... axb3 {[%clk 0:00:14.5]} 55. Nf6+ {[%clk
0:00:34.3]} 55... Qxf6 {[%clk 0:00:15]} 0-1

[Event "*** Titled Tuesday Blitz"]
[Site "Chess.com"]
[Date "2019.05.07"]
[Round "4"]
[White "SirStrateg"]
[Black "OneTrickPony_82"]
[Result "1/2-1/2"]
[WhiteElo "2521"]
[BlackElo "2353"]
[TimeControl "180+2"]
[EndTime "13:57:29 PDT"]
[Termination "Game drawn - insufficient material"]

1. d4 {[%clk 0:03:01.9]} 1... Nf6 {[%clk 0:03:00.7]} 2. Nf3 {[%clk 0:03:03]}
2... d5 {[%clk 0:03:00.9]} 3. Bf4 {[%clk 0:03:04.2]} 3... c5 {[%clk 0:02:59.1]}
4. e3 {[%clk 0:03:05.3]} 4... Nc6 {[%clk 0:02:59.1]} 5. c3 {[%clk 0:03:06.3]}
5... Qb6 {[%clk 0:03:00]} 6. Qb3 {[%clk 0:03:07.5]} 6... c4 {[%clk 0:03:00.7]}
7. Qc2 {[%clk 0:03:08.6]} 7... Bf5 {[%clk 0:02:59.7]} 8. Qc1 {[%clk 0:03:09.4]}
8... h6 {[%clk 0:02:55.6]} 9. h3 {[%clk 0:03:09.9]} 9... e6 {[%clk 0:02:55.9]}
10. Nbd2 {[%clk 0:03:11.5]} 10... Be7 {[%clk 0:02:54.2]} 11. b3 {[%clk
0:03:13.1]} 11... cxb3 {[%clk 0:02:54.5]} 12. axb3 {[%clk 0:03:15]} 12... O-O
{[%clk 0:02:53.7]} 13. Be2 {[%clk 0:03:15.5]} 13... Rfc8 {[%clk 0:02:49.2]} 14.
Qb2 {[%clk 0:03:16.6]} 14... a5 {[%clk 0:02:22.1]} 15. O-O {[%clk 0:03:16.4]}
15... a4 {[%clk 0:02:22.4]} 16. Qa2 {[%clk 0:03:04.6]} 16... axb3 {[%clk
0:02:14.3]} 17. Qxb3 {[%clk 0:03:04.6]} 17... Qxb3 {[%clk 0:02:04.9]} 18. Nxb3
{[%clk 0:03:06.5]} 18... Ne4 {[%clk 0:02:01.3]} 19. Rfc1 {[%clk 0:02:47.3]}
19... Rxa1 {[%clk 0:02:00]} 20. Nxa1 {[%clk 0:02:49.2]} 20... Na5 {[%clk
0:01:57.9]} 21. Kf1 {[%clk 0:02:27.1]} 21... g5 {[%clk 0:01:56.6]} 22. Bh2
{[%clk 0:02:20.6]} 22... Bb4 {[%clk 0:01:40.3]} 23. g4 {[%clk 0:02:12.3]} 23...
Bh7 {[%clk 0:01:35.7]} 24. c4 {[%clk 0:02:10.3]} 24... dxc4 {[%clk 0:01:26.4]}
25. Ne5 {[%clk 0:02:08.9]} 25... b5 {[%clk 0:01:20]} 26. Nc2 {[%clk 0:02:05]}
26... Nb3 {[%clk 0:01:14.5]} 27. Nxb4 {[%clk 0:01:59.8]} 27... Nxc1 {[%clk
0:01:15.6]} 28. Nd7 {[%clk 0:01:53.4]} 28... c3 {[%clk 0:00:56.1]} 29. Bxb5
{[%clk 0:01:50.4]} 29... Nb3 {[%clk 0:00:44]} 30. Ba4 {[%clk 0:01:46.2]} 30...
c2 {[%clk 0:00:29.4]} 31. Nxc2 {[%clk 0:01:45.9]} 31... Rxc2 {[%clk 0:00:30.5]}
32. Bxb3 {[%clk 0:01:46.7]} 32... Rxf2+ {[%clk 0:00:31.6]} 33. Kg1 {[%clk
0:01:47.3]} 33... Rb2 {[%clk 0:00:31.8]} 34. Ba4 {[%clk 0:01:44.9]} 34... Nd2
{[%clk 0:00:26.6]} 35. Nf6+ {[%clk 0:01:39.2]} 35... Kg7 {[%clk 0:00:27.9]} 36.
Nh5+ {[%clk 0:01:40.3]} 36... Kg6 {[%clk 0:00:21.5]} 37. Bd6 {[%clk 0:01:24.3]}
37... Nf3+ {[%clk 0:00:21.5]} 38. Kf1 {[%clk 0:01:23.3]} 38... Bg8 {[%clk
0:00:19.1]} 39. Bc6 {[%clk 0:01:22.9]} 39... Nh4 {[%clk 0:00:13.7]} 40. Be5
{[%clk 0:01:13.8]} 40... f5 {[%clk 0:00:13]} 41. Ke1 {[%clk 0:01:09.7]} 41...
Bf7 {[%clk 0:00:13.4]} 42. Kd1 {[%clk 0:01:06.2]} 42... Ra2 {[%clk 0:00:12.4]}
43. Kc1 {[%clk 0:01:06.8]} 43... Ra6 {[%clk 0:00:10.5]} 44. Bb7 {[%clk
0:01:05.1]} 44... Rb6 {[%clk 0:00:10.3]} 45. Ba8 {[%clk 0:01:05.8]} 45... Be8
{[%clk 0:00:10.8]} 46. d5 {[%clk 0:00:59.5]} 46... exd5 {[%clk 0:00:11.1]} 47.
Bxd5 {[%clk 0:01:00.3]} 47... Bc6 {[%clk 0:00:12.4]} 48. Be6 {[%clk 0:00:57]}
48... Be4 {[%clk 0:00:11.6]} 49. Bd7 {[%clk 0:00:53.5]} 49... Rb7 {[%clk
0:00:11.3]} 50. Be8+ {[%clk 0:00:54.2]} 50... Kh7 {[%clk 0:00:11.8]} 51. Nf6+
{[%clk 0:00:55.5]} 51... Kg7 {[%clk 0:00:11.1]} 52. Nxe4+ {[%clk 0:00:56.6]}
52... Kf8 {[%clk 0:00:11.8]} 53. Nd6 {[%clk 0:00:55.3]} 53... Rc7+ {[%clk
0:00:10.9]} 54. Kd1 {[%clk 0:00:56.6]} 54... fxg4 {[%clk 0:00:12.1]} 55. hxg4
{[%clk 0:00:57.6]} 55... Re7 {[%clk 0:00:13.1]} 56. Bg3 {[%clk 0:00:51.3]} 56...
Rxe8 {[%clk 0:00:13.9]} 57. Nxe8 {[%clk 0:00:52.1]} 57... Kxe8 {[%clk
0:00:15.3]} 58. Bxh4 {[%clk 0:00:48.5]} 58... gxh4 {[%clk 0:00:16.5]} 59. Ke2
{[%clk 0:00:50.1]} 59... Kf7 {[%clk 0:00:18.1]} 60. Kf3 {[%clk 0:00:51.7]} 60...
Kg6 {[%clk 0:00:18.8]} 61. Kg2 {[%clk 0:00:46.7]} 61... h5 {[%clk 0:00:18.9]}
62. gxh5+ {[%clk 0:00:46.9]} 62... Kxh5 {[%clk 0:00:20.3]} 63. Kh3 {[%clk
0:00:48.8]} 63... Kg5 {[%clk 0:00:21.8]} 64. e4 {[%clk 0:00:50.7]} 64... Kf4
{[%clk 0:00:22.9]} 65. Kxh4 {[%clk 0:00:52.6]} 65... Kxe4 {[%clk 0:00:24.4]}
1/2-1/2

[Event "*** Titled Tuesday Blitz"]
[Site "Chess.com"]
[Date "2019.05.07"]
[Round "4"]
[White "Keaton87"]
[Black "IIIlllII1llIl"]
[Result "1/2-1/2"]
[WhiteElo "2547"]
[BlackElo "2725"]
[TimeControl "180+2"]
[EndTime "13:57:41 PDT"]
[Termination "Game drawn - insufficient material"]

1. d4 {[%clk 0:03:01.3]} 1... Nf6 {[%clk 0:02:51.8]} 2. Nf3 {[%clk 0:03:01.6]}
2... g6 {[%clk 0:02:48.9]} 3. Bg5 {[%clk 0:03:01.4]} 3... Bg7 {[%clk 0:02:48.1]}
4. Nbd2 {[%clk 0:03:01.4]} 4... O-O {[%clk 0:02:44]} 5. e4 {[%clk 0:03:02.1]}
5... d5 {[%clk 0:02:44.1]} 6. exd5 {[%clk 0:02:58.4]} 6... Nxd5 {[%clk
0:02:35.7]} 7. Be2 {[%clk 0:02:49.5]} 7... h6 {[%clk 0:02:31.1]} 8. Bh4 {[%clk
0:02:42.8]} 8... Nf4 {[%clk 0:02:11.7]} 9. O-O {[%clk 0:02:43.1]} 9... c5 {[%clk
0:02:01.1]} 10. c3 {[%clk 0:02:25.6]} 10... cxd4 {[%clk 0:01:18.1]} 11. Nxd4
{[%clk 0:02:26.3]} 11... Bxd4 {[%clk 0:01:14.6]} 12. cxd4 {[%clk 0:02:27.2]}
12... Qxd4 {[%clk 0:01:13.6]} 13. Bg3 {[%clk 0:01:29.3]} 13... Nxe2+ {[%clk
0:01:07.7]} 14. Qxe2 {[%clk 0:01:29.9]} 14... Nc6 {[%clk 0:01:09]} 15. Nf3
{[%clk 0:01:21.3]} 15... Qg4 {[%clk 0:01:03]} 16. h3 {[%clk 0:01:20.3]} 16...
Qh5 {[%clk 0:00:58.7]} 17. b4 {[%clk 0:00:57.5]} 17... a6 {[%clk 0:00:44.3]} 18.
a4 {[%clk 0:00:58.3]} 18... Nxb4 {[%clk 0:00:22.9]} 19. Qxe7 {[%clk 0:00:58.3]}
19... Nc6 {[%clk 0:00:23.4]} 20. Qc7 {[%clk 0:00:50.7]} 20... Bxh3 {[%clk
0:00:21]} 21. Qxb7 {[%clk 0:00:44]} 21... Na5 {[%clk 0:00:13.8]} 22. Qe7 {[%clk
0:00:21.4]} 22... Rfe8 {[%clk 0:00:08]} 23. Qf6 {[%clk 0:00:22.1]} 23... Re6
{[%clk 0:00:06.8]} 24. Qc3 {[%clk 0:00:21.3]} 24... Bg4 {[%clk 0:00:04.8]} 25.
Nd4 {[%clk 0:00:22.1]} 25... Ree8 {[%clk 0:00:04.4]} 26. Rfe1 {[%clk 0:00:14.5]}
26... Rec8 {[%clk 0:00:04.1]} 27. Qa3 {[%clk 0:00:12.5]} 27... Nc4 {[%clk
0:00:05]} 28. Qe7 {[%clk 0:00:12.8]} 28... Qg5 {[%clk 0:00:04.6]} 29. Rac1
{[%clk 0:00:07.2]} 29... Qxe7 {[%clk 0:00:03.7]} 30. Rxe7 {[%clk 0:00:09.1]}
30... g5 {[%clk 0:00:03.3]} 31. f3 {[%clk 0:00:07.3]} 31... Bh5 {[%clk
0:00:04.4]} 32. Nf5 {[%clk 0:00:07.9]} 32... Kh7 {[%clk 0:00:04.6]} 33. Rd1
{[%clk 0:00:07.3]} 33... Bg6 {[%clk 0:00:05.3]} 34. Nd6 {[%clk 0:00:06.9]} 34...
Rd8 {[%clk 0:00:04.6]} 35. Rd4 {[%clk 0:00:06.2]} 35... Nxd6 {[%clk 0:00:04.6]}
36. Rxd6 {[%clk 0:00:07.8]} 36... Rxd6 {[%clk 0:00:05.2]} 37. Bxd6 {[%clk
0:00:09.7]} 37... a5 {[%clk 0:00:04.9]} 38. Re5 {[%clk 0:00:08.1]} 38... Ra7
{[%clk 0:00:05.2]} 39. Be7 {[%clk 0:00:07.6]} 39... Bc2 {[%clk 0:00:04.7]} 40.
Bd8 {[%clk 0:00:07.8]} 40... Rd7 {[%clk 0:00:05.6]} 41. Bxa5 {[%clk 0:00:08.1]}
41... Bxa4 {[%clk 0:00:06.6]} 42. Bc3 {[%clk 0:00:08.7]} 42... Kg6 {[%clk
0:00:06]} 43. Ra5 {[%clk 0:00:08.2]} 43... Bb3 {[%clk 0:00:05.8]} 44. g4 {[%clk
0:00:06.6]} 44... h5 {[%clk 0:00:05.4]} 45. Ra6+ {[%clk 0:00:07]} 45... Be6
{[%clk 0:00:05.6]} 46. gxh5+ {[%clk 0:00:07.9]} 46... Kxh5 {[%clk 0:00:07.5]}
47. Kf2 {[%clk 0:00:07.4]} 47... Rd3 {[%clk 0:00:07.9]} 48. Be5 {[%clk
0:00:07.2]} 48... Rb3 {[%clk 0:00:06.7]} 49. Rc6 {[%clk 0:00:06.9]} 49... Rxf3+
{[%clk 0:00:05.8]} 50. Kxf3 {[%clk 0:00:07.2]} 50... Bd5+ {[%clk 0:00:07.3]} 51.
Kg3 {[%clk 0:00:07.3]} 51... Bxc6 {[%clk 0:00:08.4]} 52. Bc3 {[%clk 0:00:08.9]}
52... Kg6 {[%clk 0:00:09.2]} 53. Bd2 {[%clk 0:00:10.4]} 53... f6 {[%clk
0:00:09.2]} 54. Bc1 {[%clk 0:00:10.4]} 54... Bd7 {[%clk 0:00:10.1]} 55. Bd2
{[%clk 0:00:11.7]} 55... Kf5 {[%clk 0:00:11.3]} 56. Bc1 {[%clk 0:00:12.8]} 56...
Kg6 {[%clk 0:00:12.1]} 57. Bd2 {[%clk 0:00:14.1]} 57... Be6 {[%clk 0:00:12.7]}
58. Bc1 {[%clk 0:00:15.4]} 58... Kf5 {[%clk 0:00:13.8]} 59. Bd2 {[%clk
0:00:16.7]} 59... Ke4 {[%clk 0:00:14.7]} 60. Bc1 {[%clk 0:00:17.8]} 60... Kd3
{[%clk 0:00:15.9]} 61. Bb2 {[%clk 0:00:15.3]} 61... f5 {[%clk 0:00:15]} 62. Bc1
{[%clk 0:00:16.6]} 62... f4+ {[%clk 0:00:14.6]} 63. Bxf4 {[%clk 0:00:17.5]}
63... gxf4+ {[%clk 0:00:16.5]} 64. Kxf4 {[%clk 0:00:18.8]} 1/2-1/2

[Event "*** Titled Tuesday Blitz"]
[Site "Chess.com"]
[Date "2019.05.07"]
[Round "4"]
[White "Zq1"]
[Black "valeriocarnicelli"]
[Result "0-1"]
[WhiteElo "2509"]
[BlackElo "2533"]
[TimeControl "180+2"]
[EndTime "13:57:52 PDT"]
[Termination "valeriocarnicelli won by checkmate"]

1. d4 {[%clk 0:03:01.9]} 1... Nf6 {[%clk 0:03:00.2]} 2. c4 {[%clk 0:03:02.8]}
2... g6 {[%clk 0:03:01.5]} 3. Nc3 {[%clk 0:03:03.3]} 3... Bg7 {[%clk 0:03:02.8]}
4. e4 {[%clk 0:03:04.4]} 4... d6 {[%clk 0:03:04.3]} 5. Nf3 {[%clk 0:03:05.5]}
5... O-O {[%clk 0:03:05.6]} 6. Be2 {[%clk 0:03:06.9]} 6... Na6 {[%clk 0:03:07]}
7. O-O {[%clk 0:03:07.3]} 7... e5 {[%clk 0:03:08.3]} 8. Re1 {[%clk 0:03:07.5]}
8... Nh5 {[%clk 0:03:01.2]} 9. Bf1 {[%clk 0:02:58.8]} 9... c6 {[%clk 0:02:59.5]}
10. Be3 {[%clk 0:02:55.2]} 10... Nf4 {[%clk 0:02:56.3]} 11. g3 {[%clk
0:02:26.4]} 11... Nh3+ {[%clk 0:02:54]} 12. Kh1 {[%clk 0:02:27.3]} 12... Bg4
{[%clk 0:02:52.6]} 13. Bg2 {[%clk 0:02:25.1]} 13... exd4 {[%clk 0:02:26]} 14.
Bxd4 {[%clk 0:02:24.7]} 14... Nb4 {[%clk 0:02:16.5]} 15. Rc1 {[%clk 0:02:04.6]}
15... Bxd4 {[%clk 0:02:16.5]} 16. Qxd4 {[%clk 0:02:04.9]} 16... Bxf3 {[%clk
0:01:52.5]} 17. Bxf3 {[%clk 0:02:04.9]} 17... Nd3 {[%clk 0:01:53.2]} 18. Kg2
{[%clk 0:01:46.7]} 18... Nxe1+ {[%clk 0:01:49]} 19. Rxe1 {[%clk 0:01:46.9]}
19... Ng5 {[%clk 0:01:50.3]} 20. Bg4 {[%clk 0:01:45.6]} 20... Ne6 {[%clk
0:01:49.4]} 21. Qd2 {[%clk 0:01:41.4]} 21... Qf6 {[%clk 0:01:46.7]} 22. Rd1
{[%clk 0:01:35.5]} 22... Rad8 {[%clk 0:01:47.1]} 23. h4 {[%clk 0:01:35.1]} 23...
Rfe8 {[%clk 0:01:43.9]} 24. Qe3 {[%clk 0:01:28.5]} 24... Nc5 {[%clk 0:01:43.4]}
25. b4 {[%clk 0:01:16]} 25... Nd7 {[%clk 0:01:23.9]} 26. Na4 {[%clk 0:01:07.1]}
26... Ne5 {[%clk 0:01:22.9]} 27. Be2 {[%clk 0:01:06.9]} 27... b6 {[%clk
0:01:18.5]} 28. b5 {[%clk 0:01:02.3]} 28... cxb5 {[%clk 0:01:07.2]} 29. cxb5
{[%clk 0:01:02.8]} 29... Nd7 {[%clk 0:01:08.4]} 30. Nc3 {[%clk 0:01:00]} 30...
Nc5 {[%clk 0:01:05.7]} 31. Nd5 {[%clk 0:01:00.7]} 31... Qg7 {[%clk 0:01:05.4]}
32. Bf3 {[%clk 0:00:57.1]} 32... Kh8 {[%clk 0:01:00.3]} 33. Qf4 {[%clk
0:00:52.8]} 33... Ne6 {[%clk 0:00:55.6]} 34. Qd2 {[%clk 0:00:40.6]} 34... Qe5
{[%clk 0:00:53.3]} 35. h5 {[%clk 0:00:35.7]} 35... Ng5 {[%clk 0:00:51.1]} 36.
Re1 {[%clk 0:00:22.9]} 36... Nxf3 {[%clk 0:00:51.2]} 37. Kxf3 {[%clk 0:00:23.5]}
37... Qxh5+ {[%clk 0:00:52.3]} 38. Kg2 {[%clk 0:00:23.4]} 38... Qe5 {[%clk
0:00:52.6]} 39. f4 {[%clk 0:00:23.1]} 39... Qg7 {[%clk 0:00:53.1]} 40. Nc7
{[%clk 0:00:21.2]} 40... Re7 {[%clk 0:00:52]} 41. Nd5 {[%clk 0:00:22.2]} 41...
Ree8 {[%clk 0:00:51.4]} 42. Nc7 {[%clk 0:00:22.7]} 42... Rf8 {[%clk 0:00:51.8]}
43. Rc1 {[%clk 0:00:19.2]} 43... Rc8 {[%clk 0:00:49.2]} 44. Rc6 {[%clk
0:00:19.6]} 44... Rfd8 {[%clk 0:00:43.6]} 45. Nd5 {[%clk 0:00:17]} 45... h6
{[%clk 0:00:34.8]} 46. Qc2 {[%clk 0:00:16.9]} 46... Rb8 {[%clk 0:00:26.3]} 47.
Rc7 {[%clk 0:00:17.9]} 47... Ra8 {[%clk 0:00:21]} 48. Qc6 {[%clk 0:00:14.4]}
48... h5 {[%clk 0:00:16]} 49. Re7 {[%clk 0:00:11]} 49... Rf8 {[%clk 0:00:15.4]}
50. Qxd6 {[%clk 0:00:07.1]} 50... Rad8 {[%clk 0:00:15.4]} 51. Qc7 {[%clk
0:00:08.3]} 51... Rc8 {[%clk 0:00:14.1]} 52. Qd6 {[%clk 0:00:08.2]} 52... Rc2+
{[%clk 0:00:14.8]} 53. Kh3 {[%clk 0:00:08.7]} 53... Qb2 {[%clk 0:00:15.2]} 54.
Kh4 {[%clk 0:00:07.2]} 54... Rh2+ {[%clk 0:00:14.6]} 55. Kg5 {[%clk 0:00:08.3]}
55... Qg7 {[%clk 0:00:15.5]} 56. Qf6 {[%clk 0:00:08.7]} 56... Kh7 {[%clk
0:00:14]} 57. e5 {[%clk 0:00:08.3]} 57... Qh6# {[%clk 0:00:14.2]} 0-1

[Event "*** Titled Tuesday Blitz"]
[Site "Chess.com"]
[Date "2019.05.07"]
[Round "4"]
[White "VFernandezB"]
[Black "PlotnikovPavel"]
[Result "1/2-1/2"]
[WhiteElo "2329"]
[BlackElo "2354"]
[TimeControl "180+2"]
[EndTime "13:57:55 PDT"]
[Termination "Game drawn by stalemate"]

1. d4 {[%clk 0:03:01.9]} 1... e6 {[%clk 0:03:00.1]} 2. c4 {[%clk 0:03:02.5]}
2... f5 {[%clk 0:03:00.8]} 3. Nc3 {[%clk 0:03:01]} 3... Nf6 {[%clk 0:03:02.1]}
4. Bg5 {[%clk 0:02:56.9]} 4... Bb4 {[%clk 0:03:03.1]} 5. e3 {[%clk 0:02:53.8]}
5... O-O {[%clk 0:03:03.4]} 6. Bd3 {[%clk 0:02:54.4]} 6... h6 {[%clk 0:03:02.9]}
7. Bxf6 {[%clk 0:02:49.4]} 7... Qxf6 {[%clk 0:03:03.2]} 8. Ne2 {[%clk
0:02:50.4]} 8... b6 {[%clk 0:03:03.3]} 9. O-O {[%clk 0:02:48.5]} 9... Bb7 {[%clk
0:03:03.5]} 10. f3 {[%clk 0:02:50.2]} 10... Nc6 {[%clk 0:02:56.7]} 11. a3 {[%clk
0:02:47.3]} 11... Bxc3 {[%clk 0:02:52.1]} 12. Nxc3 {[%clk 0:02:48.7]} 12... d6
{[%clk 0:02:46.4]} 13. b4 {[%clk 0:02:47.6]} 13... Rae8 {[%clk 0:02:45.6]} 14.
Kh1 {[%clk 0:02:47.4]} 14... f4 {[%clk 0:02:32.2]} 15. b5 {[%clk 0:02:41.2]}
15... Na5 {[%clk 0:02:28.7]} 16. e4 {[%clk 0:02:42.3]} 16... Qxd4 {[%clk
0:02:25.9]} 17. Rc1 {[%clk 0:01:57.8]} 17... Qe5 {[%clk 0:02:17.8]} 18. Qc2
{[%clk 0:01:55.2]} 18... Re7 {[%clk 0:02:13.6]} 19. Nb1 {[%clk 0:01:53.9]} 19...
g5 {[%clk 0:02:12.6]} 20. Nd2 {[%clk 0:01:49.2]} 20... Bc8 {[%clk 0:02:09.6]}
21. Nb3 {[%clk 0:01:47.7]} 21... Nxb3 {[%clk 0:01:54.1]} 22. Qxb3 {[%clk
0:01:49.2]} 22... h5 {[%clk 0:01:51.7]} 23. Qc3 {[%clk 0:01:41.3]} 23... Qxc3
{[%clk 0:01:47.3]} 24. Rxc3 {[%clk 0:01:42.9]} 24... Kg7 {[%clk 0:01:45.9]} 25.
h3 {[%clk 0:01:28.8]} 25... Kf6 {[%clk 0:01:43.2]} 26. Kg1 {[%clk 0:01:27.6]}
26... a5 {[%clk 0:01:40.6]} 27. Kf2 {[%clk 0:01:26.7]} 27... Ke5 {[%clk
0:01:40.5]} 28. Re1 {[%clk 0:01:19.8]} 28... Rg7 {[%clk 0:01:38.9]} 29. Rcc1
{[%clk 0:01:18.4]} 29... Bd7 {[%clk 0:01:35.8]} 30. Rh1 {[%clk 0:01:16.6]} 30...
Rfg8 {[%clk 0:01:34.4]} 31. Ke1 {[%clk 0:01:15.5]} 31... Be8 {[%clk 0:01:31.7]}
32. Kd2 {[%clk 0:01:14.7]} 32... g4 {[%clk 0:01:31]} 33. hxg4 {[%clk 0:01:12]}
33... hxg4 {[%clk 0:01:31.7]} 34. Kc3 {[%clk 0:01:11.1]} 34... gxf3 {[%clk
0:01:29.7]} 35. gxf3 {[%clk 0:01:12.7]} 35... Rg3 {[%clk 0:01:29.9]} 36. Be2
{[%clk 0:01:10.6]} 36... Rg2 {[%clk 0:01:29.3]} 37. Rc2 {[%clk 0:01:12]} 37...
Rf2 {[%clk 0:01:24.3]} 38. Bd1 {[%clk 0:01:08.9]} 38... Rxc2+ {[%clk 0:01:24.1]}
39. Kxc2 {[%clk 0:01:07.5]} 39... Kd4 {[%clk 0:01:24.5]} 40. Rh7 {[%clk
0:01:05]} 40... Kxc4 {[%clk 0:01:11.9]} 41. Rxc7+ {[%clk 0:01:03.2]} 41... Kd4
{[%clk 0:01:07.2]} 42. a4 {[%clk 0:00:59.5]} 42... Rg2+ {[%clk 0:01:05.1]} 43.
Kc1 {[%clk 0:01:00.9]} 43... Bh5 {[%clk 0:01:02.4]} 44. Rc6 {[%clk 0:00:58.6]}
44... d5 {[%clk 0:00:58.5]} 45. Rxe6 {[%clk 0:00:55.9]} 45... Rg1 {[%clk
0:00:58.3]} 46. Kd2 {[%clk 0:00:54.4]} 46... Rg2+ {[%clk 0:00:50.6]} 47. Kc1
{[%clk 0:00:54.7]} 47... Rg1 {[%clk 0:00:35.6]} 48. Kd2 {[%clk 0:00:47.6]} 48...
Rxd1+ {[%clk 0:00:13.2]} 49. Kxd1 {[%clk 0:00:43.4]} 49... Bxf3+ {[%clk
0:00:14.8]} 50. Ke1 {[%clk 0:00:42.6]} 50... dxe4 {[%clk 0:00:16.7]} 51. Rxb6
{[%clk 0:00:40.3]} 51... e3 {[%clk 0:00:17.7]} 52. Rf6 {[%clk 0:00:40.7]} 52...
Ke5 {[%clk 0:00:18.4]} 53. Rf7 {[%clk 0:00:36.8]} 53... Bd5 {[%clk 0:00:19.5]}
54. b6 {[%clk 0:00:35]} 54... f3 {[%clk 0:00:20]} 55. b7 {[%clk 0:00:30.3]}
55... f2+ {[%clk 0:00:21.1]} 56. Ke2 {[%clk 0:00:26.1]} 56... Bxf7 {[%clk
0:00:21.1]} 57. b8=Q+ {[%clk 0:00:25.7]} 57... Kf6 {[%clk 0:00:21.3]} 58. Kxe3
{[%clk 0:00:25.8]} 58... f1=Q {[%clk 0:00:21.6]} 59. Qf4+ {[%clk 0:00:22.3]}
59... Qxf4+ {[%clk 0:00:22]} 60. Kxf4 {[%clk 0:00:24]} 60... Bb3 {[%clk
0:00:23.3]} 61. Ke3 {[%clk 0:00:25.2]} 61... Bxa4 {[%clk 0:00:25.2]} 62. Kd2
{[%clk 0:00:26.8]} 62... Bb3 {[%clk 0:00:27.1]} 63. Kc3 {[%clk 0:00:27.7]} 63...
a4 {[%clk 0:00:28.9]} 64. Kb2 {[%clk 0:00:29]} 64... Ke5 {[%clk 0:00:30.8]} 65.
Ka1 {[%clk 0:00:30.2]} 65... Kd4 {[%clk 0:00:32.7]} 66. Kb2 {[%clk 0:00:31.6]}
66... Kc4 {[%clk 0:00:33.8]} 67. Ka1 {[%clk 0:00:33]} 67... Kc3 {[%clk
0:00:35.7]} 68. Kb1 {[%clk 0:00:33.5]} 68... Kb4 {[%clk 0:00:37.6]} 69. Ka1
{[%clk 0:00:34.9]} 69... Ka3 {[%clk 0:00:39.5]} 70. Kb1 {[%clk 0:00:36.3]} 70...
Ba2+ {[%clk 0:00:41.4]} 71. Ka1 {[%clk 0:00:37.7]} 71... Bb1 {[%clk 0:00:43.3]}
72. Kxb1 {[%clk 0:00:38.8]} 72... Kb3 {[%clk 0:00:45.2]} 73. Ka1 {[%clk
0:00:40.4]} 73... a3 {[%clk 0:00:47.1]} 74. Kb1 {[%clk 0:00:42]} 74... a2+
{[%clk 0:00:49]} 75. Ka1 {[%clk 0:00:43.6]} 75... Ka3 {[%clk 0:00:49.9]} 1/2-1/2